bitfinex-derivatives/quotes_SOLF0:USTF0_20250310
["timestamp","ask_amount","ask_price","bid_price","bid_amount"]
[1741567239380,7.9846,125.25,125.24,8.433e-05]
[1741567240681,8.03627557,125.26,125.24,8.433e-05]
[1741567240979,0.05197557,125.26,125.24,8.433e-05]
[1741567241181,7.9846,125.25,125.24,8.433e-05]
[1741567242077,0.05197557,125.26,125.24,8.433e-05]
[1741567243379,228.44,125.33,125.24,8.433e-05]
[1741567243581,36.44,125.33,125.23,54.25284149]
[1741567243990,36.44,125.33,125.25,7.9844]
[1741567244277,36.44,125.33,125.22,40.3193]
[1741567244474,7.9824,125.29,125.28,0.05692852]
[1741567245082,0.057604,125.3,125.28,0.05692852]
[1741567245585,7.9821,125.29,125.28,0.05692852]
[1741567245878,36.44,125.29,125.2,4.2385]
[1741567246077,36.44,125.29,125.21,7.9871]
[1741567246273,36.44,125.29,125.2,4.2385]
[1741567246580,7.9852,125.25,125.21,7.9868]
[1741567246986,0.05808024,125.24,125.22,0.05582816]
[1741567247283,7.9837,125.27,125.23,7.9856]
[1741567247487,36.44,125.29,125.22,36.49582816]
[1741567247679,4.1452,125.34,125.22,90.69284149]
[1741567247874,4.1452,125.34,125.24,54.25284149]
[1741567248284,0.05734493,125.3,125.28,8.03993746]
[1741567248584,36.44,125.35,125.28,0.05743746]
[1741567248785,8.0341573,125.3,125.28,0.05743746]
[1741567249087,8.03825115,125.3,125.28,0.05743746]
[1741567249277,0.05645115,125.3,125.28,8.03953746]
[1741567249986,0.05645115,125.3,125.28,0.05743746]
[1741567250790,7.9821,125.29,125.28,0.05743746]
[1741567252184,0.05645115,125.3,125.2,123.52589101]
[1741567252383,36.44,125.31,125.25,7.9845]
[1741567252783,36.44,125.31,125.24,36.44]
[1741567253288,0.05150498,125.29,125.26,0.05152439]
[1741567254381,8.03380498,125.29,125.26,0.05152439]
[1741567254784,0.05150498,125.29,125.26,0.05152439]
[1741567255885,0.05150498,125.29,125.27,7.9829]
[1741567256080,7.9797,125.33,125.27,3.8545]
[1741567256292,54.25284149,125.37,125.27,3.8545]
[1741567256487,90.69284149,125.37,125.27,3.8545]
[1741567256687,54.25284149,125.35,125.27,3.8545]
[1741567257195,0.06056886,125.32,125.3,0.06095302]
[1741567257887,7.9808,125.31,125.3,0.06095302]
[1741567259090,7.9842,125.26,125.21,69.27304952]
[1741567259292,54.31341035,125.32,125.25,7.9845]
[1741567259489,36.44,125.33,125.21,69.27304952]
[1741567259693,7.9823,125.29,125.21,69.27304952]
[1741567259995,90.69284149,125.33,125.22,90.69284149]
[1741567260197,0.0538661,125.27,125.24,0.05935435]
[1741567260693,36.44,125.29,125.2,54.25284149]
[1741567260896,0.0565169,125.27,125.24,0.05957331]
[1741567261896,7.9846,125.25,125.24,0.05957331]
[1741567262200,0.0565169,125.27,125.24,0.05957331]
[1741567262392,7.9842,125.26,125.24,0.05957331]
[1741567262785,0.0565169,125.27,125.24,0.05957331]
[1741567262990,192.0,125.31,125.24,54.3124148]
[1741567263193,8.4384,125.36,125.27,54.25284149]
[1741567263389,192.0,125.42,125.29,54.25284149]
[1741567263599,7.9769,125.38,125.32,7.9798]
[1741567263800,36.42,125.4,125.32,36.42]
[1741567264099,250.49064149,125.42,125.32,36.42]
[1741567264301,0.05362874,125.37,125.35,0.05584024]
[1741567264704,121.11736313,125.41,125.35,0.05584024]
[1741567264889,0.05960809,125.37,125.35,0.05584024]
[1741567265088,7.9776,125.36,125.35,0.05584024]
[1741567265493,7.9788,125.35,125.29,44.4215]
[1741567265693,54.25284149,125.3,125.15,175.0767891]
[1741567265990,7.9859,125.23,125.17,4.1606]
[1741567266196,36.46,125.24,125.17,4.1606]
[1741567266403,36.46,125.24,125.15,178.9478891]
[1741567266604,8.04027745,125.22,125.19,0.05454229]
[1741567266802,0.05327745,125.22,125.19,0.05454229]
[1741567267805,0.05327745,125.22,125.21,242.62537163]
[1741567269293,8.03977745,125.22,125.21,242.62537163]
[1741567269495,8.03977745,125.22,125.21,236.21247163]
[1741567269696,0.05327745,125.22,125.19,0.05454229]
[1741567270403,8.04027745,125.22,125.19,0.05454229]
[1741567270596,0.05327745,125.22,125.19,0.05454229]
[1741567270802,54.30611894,125.22,125.19,0.05454229]
[1741567270991,7.9878,125.2,125.19,0.05454229]
[1741567271192,62.24064149,125.2,125.19,4.229e-05]
[1741567271597,66.24064149,125.2,125.19,4.229e-05]
[1741567271797,62.24064149,125.2,125.19,4.229e-05]
[1741567272000,7.9878,125.2,125.19,4.229e-05]
[1741567272201,62.24064149,125.2,125.19,4.229e-05]
[1741567272701,66.24064149,125.2,125.19,4.229e-05]
[1741567273100,62.24064149,125.2,125.19,4.229e-05]
[1741567273497,66.24064149,125.2,125.19,4.229e-05]
[1741567273794,62.24064149,125.2,125.19,4.229e-05]
[1741567274705,66.24064149,125.2,125.19,4.229e-05]
[1741567275109,62.24064149,125.2,125.19,4.229e-05]
[1741567276005,7.9878,125.2,125.19,4.229e-05]
[1741567276202,33.04019592,125.29,125.19,4.229e-05]
[1741567276402,33.04019592,125.29,125.19,7.87144229]
[1741567276608,33.04019592,125.29,125.21,54.25284149]
[1741567276906,33.04019592,125.29,125.22,36.46]
[1741567277511,0.05735084,125.27,125.24,0.05581668]
[1741567279107,33.04019592,125.29,125.24,0.05581668]
[1741567279313,36.46,125.31,125.24,0.05581668]
[1741567280315,0.05614291,125.29,125.24,0.05581668]
[1741567280511,0.05614291,125.29,125.22,36.46]
[1741567280711,0.05614291,125.29,125.25,0.05373579]
[1741567281521,36.44,125.33,125.25,4.18553579]
[1741567281723,36.44,125.33,125.25,4.1318]
[1741567281918,7.9799,125.33,125.25,4.1318]
[1741567282122,7.9799,125.33,125.26,36.44]
[1741567282425,7.98,125.33,125.26,36.44]
[1741567282623,7.98,125.33,125.27,4.0813]
[1741567282824,7.98,125.33,125.28,0.05212992]
[1741567283019,7.9803,125.32,125.28,0.05212992]
[1741567283325,90.69284149,125.34,125.28,0.05212992]
[1741567283522,7.9821,125.29,125.28,0.05212992]
[1741567284832,62.23494149,125.29,125.28,0.05212992]
[1741567285417,7.9821,125.29,125.28,0.05212992]
[1741567291523,62.23494149,125.29,125.28,0.05212992]
[1741567291827,7.9821,125.29,125.28,0.05212992]
[1741567292329,7.9821,125.29,125.28,2.992e-05]
[1741567292520,41.02858829,125.29,125.28,2.992e-05]
[1741567295728,7.9821,125.29,125.28,2.992e-05]
[1741567297327,41.02858829,125.29,125.28,2.992e-05]
[1741567298526,45.02858829,125.29,125.28,2.992e-05]
[1741567298932,78.07507658,125.29,125.28,2.992e-05]
[1741567299127,79.67137317,125.29,125.28,2.992e-05]
[1741567299529,46.62488488,125.29,125.28,2.992e-05]
[1741567299729,42.62488488,125.29,125.28,2.992e-05]
[1741567299930,46.62488488,125.29,125.28,2.992e-05]
[1741567300131,42.62488488,125.29,125.28,2.992e-05]
[1741567301730,7.9821,125.29,125.28,2.992e-05]
[1741567302431,44.4221,125.29,125.28,2.992e-05]
[1741567306140,0.05662874,125.3,125.28,2.992e-05]
[1741567306338,33.04648829,125.36,125.28,2.992e-05]
[1741567306541,7.98,125.33,125.28,7.9822]
[1741567306939,36.42,125.34,125.25,36.42]
[1741567307442,36.42,125.34,125.28,0.05462886]
[1741567308244,33.04648829,125.38,125.28,0.05462886]
[1741567308539,36.42,125.37,125.26,33.04648829]
[1741567308744,33.04648829,125.36,125.32,0.0516261]
[1741567309146,7.9795,125.33,125.32,0.0516261]
[1741567309540,44.3995,125.33,125.32,0.0516261]
[1741567311338,44.3995,125.33,125.32,2.61e-05]
[1741567314840,7.9795,125.33,125.32,2.61e-05]
[1741567315150,0.05835383,125.34,125.32,2.61e-05]
[1741567315151,8.03755383,125.34,125.32,2.61e-05]
[1741567315547,33.04648829,125.39,125.32,2.61e-05]
[1741567315749,36.42,125.38,125.32,2.61e-05]
[1741567316044,7.9779,125.36,125.32,7.9797261]
[1741567316250,36.42,125.38,125.32,2.61e-05]
[1741567318551,7.9779,125.36,125.32,7.9799261]
[1741567318746,36.42,125.38,125.32,2.61e-05]
[1741567319153,7.9795,125.33,125.32,2.61e-05]
[1741567320452,7.9787,125.35,125.32,2.61e-05]
[1741567321147,69.46648829,125.38,125.32,2.61e-05]
[1741567321948,36.42,125.38,125.32,2.61e-05]
[1741567322450,33.04648829,125.4,125.32,2.61e-05]
[1741567322451,36.4,125.4,125.32,2.61e-05]
[1741567322649,7.9761,125.39,125.32,2.61e-05]
[1741567322853,7.9761,125.39,125.31,36.4]
[1741567322854,7.9761,125.39,125.35,7.9777]
[1741567323055,7.9761,125.39,125.36,7.9983]
[1741567323255,33.04648829,125.42,125.36,7.9983]
[1741567323558,10.99461256,125.43,125.38,7.9763]
[1741567323758,7.9745,125.41,125.38,0.05102723]
[1741567324358,10.99461256,125.43,125.38,0.05102723]
[1741567325051,44.0847083,125.48,125.39,36.4]
[1741567325255,44.0847083,125.48,125.4,7.9746]
[1741567325658,7.972,125.45,125.42,0.05939551]
[1741567325960,36.38,125.47,125.42,8.03269551]
[1741567326153,36.38,125.47,125.43,4.2536]
[1741567326653,44.0847083,125.48,125.43,4.2536]
[1741567326859,44.0847083,125.48,125.44,3.9477]
[1741567327356,88.07716721,125.49,125.45,263.2764676]
[1741567327658,132.72997243,125.5,125.49,7.9693]
[1741567328057,130.20707243,125.5,125.49,11.9493]
[1741567328255,130.20707243,125.5,125.48,0.06144773]
[1741567329464,40.5498,125.56,125.48,73.46793602]
[1741567329663,40.5498,125.56,125.48,36.44144773]
[1741567329866,7.966,125.55,125.49,7.9689]
[1741567330067,73.59628829,125.56,125.51,0.05961743]
[1741567330865,7.9668,125.53,125.51,0.05961743]
[1741567331062,36.36,125.52,125.51,0.05961743]
[1741567331865,44.3274,125.52,125.51,0.05961743]
[1741567333169,7.9698,125.49,125.43,265.66008829]
[1741567333371,36.36,125.52,125.43,73.66008829]
[1741567333668,36.36,125.52,125.45,33.04648829]
[1741567334167,36.36,125.52,125.49,7.9693]
[1741567334369,7.847e-05,125.5,125.47,69.44580587]
[1741567334667,7.9641,125.58,125.53,7.9666]
[1741567334866,4.1214,125.59,125.47,69.38648829]
[1741567334867,36.34,125.6,125.51,69.38648829]
[1741567335262,44.3025,125.6,125.55,7.9649]
[1741567335466,36.34,125.6,125.51,69.38648829]
[1741567335665,4.0564,125.61,125.56,0.05865344]
[1741567335971,36.34,125.6,125.56,0.05865344]
[1741567336367,36.34,125.6,125.57,7.9643]
[1741567336572,33.04648829,125.64,125.56,0.05865344]
[1741567336573,36.34,125.64,125.56,0.05865344]
[1741567336974,36.34,125.64,125.55,69.38648829]
[1741567337174,69.38648829,125.64,125.59,0.05454522]
[1741567337472,36.34,125.64,125.59,0.05454522]
[1741567337869,69.38648829,125.64,125.59,0.05454522]
[1741567338066,33.04648829,125.62,125.59,0.05454522]
[1741567338273,33.04648829,125.62,125.51,69.38648829]
[1741567339177,3.8686,125.63,125.51,69.38648829]
[1741567339474,0.05268195,125.58,125.55,33.09837991]
[1741567339674,40.1886,125.63,125.55,69.41837991]
[1741567339976,36.32,125.63,125.55,69.36648829]
[1741567340673,36.32,125.63,125.55,36.32]
[1741567340975,36.32,125.63,125.58,0.05088377]
[1741567342883,33.04648829,125.6,125.43,228.32]
[1741567343176,232.3,125.63,125.43,228.32]
[1741567343177,33.04648829,125.57,125.44,33.04648829]
[1741567343573,7.9682,125.51,125.47,7.9704]
[1741567343775,36.32,125.53,125.44,33.04648829]
[1741567343975,0.05186161,125.5,125.48,0.05812284]
[1741567344377,36.3,125.56,125.46,33.04648829]
[1741567344576,0.05583812,125.5,125.48,0.05075382]
[1741567344980,36.3,125.56,125.46,33.04648829]
[1741567345185,8.02143193,125.5,125.48,0.05475057]
[1741567345388,36.35253193,125.5,125.48,0.05475057]
[1741567345678,36.3,125.5,125.47,7.97]
[1741567345878,0.05586447,125.5,125.48,0.0553743]
[1741567346085,8.2426,125.59,125.48,69.40186259]
[1741567346285,36.3,125.58,125.48,69.34648829]
[1741567346679,8.2426,125.59,125.48,69.34648829]
[1741567346886,44.5426,125.59,125.5,33.04648829]
[1741567347276,3.8732,125.61,125.53,0.05553379]
[1741567347477,3.8732,125.61,125.53,36.35553379]
[1741567347681,3.8732,125.61,125.54,33.04648829]
[1741567347882,7.9631,125.59,125.56,0.05929493]
[1741567348082,3.8732,125.61,125.56,0.05929493]
[1741567348385,48.1352,125.61,125.56,8.02379493]
[1741567348882,12.0966,125.63,125.56,0.05929493]
[1741567349183,12.0966,125.63,125.56,33.10578322]
[1741567349184,4.136,125.63,125.56,33.10578322]
[1741567349781,36.3,125.66,125.57,36.3]
[1741567349977,20.1203,125.68,125.62,7.961]
[1741567350186,36.3,125.67,125.62,7.961]
[1741567350680,20.1203,125.68,125.62,7.961]
[1741567350877,12.1626,125.68,125.64,7.9597]
[1741567351185,48.4626,125.68,125.64,7.9597]
[1741567351382,44.4402,125.68,125.63,0.05633461]
[1741567352083,44.4402,125.68,125.63,8.01643461]
[1741567352286,44.4402,125.68,125.63,0.05633461]
[1741567352584,33.04648829,125.71,125.63,0.05633461]
[1741567352786,36.3,125.69,125.63,0.05633461]
[1741567352986,36.3,125.7,125.61,36.3]
[1741567353287,8.0407,125.72,125.66,0.05675764]
[1741567353786,8.0407,125.72,125.69,7.9566]
[1741567353982,8.0407,125.72,125.66,0.05675764]
[1741567354177,454.8,125.8,125.66,33.04648829]
[1741567354178,33.04648829,125.78,125.66,33.04648829]
[1741567354383,36.28,125.77,125.68,0.05865475]
[1741567354683,7.9526,125.76,125.7,7.9556]
[1741567354886,36.28,125.77,125.71,0.05866726]
[1741567355083,192.0,125.81,125.71,0.05866726]
[1741567355284,8.0073,125.83,125.71,192.05866726]
[1741567355480,4.0986,125.82,125.73,33.04648829]
[1741567355680,4.0986,125.82,125.78,7.9505]
[1741567356083,4.0986,125.82,125.74,36.28]
[1741567356278,4.0986,125.82,125.79,0.0557282]
[1741567357685,33.04648829,125.89,125.79,0.0557282]
[1741567357892,12.3281,125.87,125.79,33.10221649]
[1741567358092,7.9464,125.86,125.78,36.26]
[1741567358391,33.04648829,125.95,125.82,33.09769949]
[1741567358587,8.2604,125.93,125.83,36.26]
[1741567358793,8.2604,125.93,125.85,33.04648829]
[1741567359291,86.77337297,125.98,125.92,33.04648829]
[1741567359591,86.74067297,125.98,125.95,33.04648829]
[1741567359799,56.20547297,125.98,125.97,40.98548829]
[1741567360091,8.2604,126.08,125.97,40.98548829]
[1741567360092,573.56862643,126.1,125.97,294.35297658]
[1741567360280,32.49089286,126.1,126.06,52.97483326]
[1741567360482,32.49089286,126.1,126.07,36.24]
[1741567360880,32.49089286,126.1,126.08,52.97483326]
[1741567361385,32.49089286,126.1,126.08,248.93483326]
[1741567361785,32.49089286,126.1,126.09,36.24]
[1741567362289,32.49089286,126.1,126.09,232.2]
[1741567362492,32.49089286,126.1,126.09,240.1314]
[1741567362697,32.49089286,126.1,126.09,195.96]
[1741567362886,7.9254,126.19,126.09,232.2]
[1741567363184,262.32199714,126.52,126.15,52.97483326]
[1741567363185,36.24,126.26,126.15,52.97483326]
[1741567363392,4.2254,126.24,126.16,52.97483326]
[1741567363888,4.2254,126.24,126.19,53.02489517]
[1741567364092,4.2254,126.24,126.19,89.22489517]
[1741567364986,4.2254,126.24,126.19,0.05006191]
[1741567365187,40.4254,126.24,126.19,0.05006191]
[1741567365589,93.40023326,126.24,126.13,52.97483326]
[1741567365896,7.925,126.2,126.13,52.97483326]
[1741567366095,36.2,126.2,126.11,148.30349385]
[1741567366595,7.9258,126.19,126.11,148.30349385]
[1741567366796,0.04686728,126.17,126.14,0.05688935]
[1741567367289,0.04686728,126.17,126.16,52.97483326]
[1741567367490,0.04686728,126.17,126.16,322.86183326]
[1741567367491,0.01386728,126.17,126.16,322.86183326]
[1741567367696,4.2254,126.24,126.16,326.82183326]
[1741567367895,4.2254,126.24,126.19,52.97483326]
[1741567368094,4.2254,126.24,126.17,52.97483326]
[1741567368290,40.3854,126.24,126.16,261.96]
[1741567368989,40.3854,126.24,126.19,0.05899095]
[1741567369390,35.42643324,126.24,126.19,0.05899095]
[1741567369896,35.42643324,126.24,126.19,53.03382421]
[1741567370590,7.9215,126.25,126.19,97.09872421]
[1741567370791,40.0819,126.28,126.19,97.09872421]
[1741567370992,40.0819,126.28,126.19,89.11483326]
[1741567371190,7.9208,126.26,126.22,0.05633135]
[1741567371393,52.97483326,126.34,126.23,52.97483326]
[1741567371589,36.14,126.31,126.23,89.11483326]
[1741567371798,7.9183,126.3,126.23,89.11483326]
[1741567371998,36.14,126.31,126.25,0.05609832]
[1741567372698,7.92,126.28,126.25,0.05609832]
[1741567372998,36.14,126.31,126.25,0.05609832]
[1741567373901,7.9207,126.26,126.25,0.05609832]
[1741567374393,7.9214,126.25,126.2,36.14]
[1741567374700,40.1256,126.3,126.22,52.97483326]
[1741567374893,4.1491,126.34,126.24,52.97483326]
[1741567375090,7.9177,126.31,126.26,52.97483326]
[1741567375295,40.2691,126.34,126.26,52.97483326]
[1741567375494,36.12,126.38,126.3,52.97483326]
[1741567375695,40.1947,126.41,126.32,52.97483326]
[1741567375897,4.0747,126.41,126.34,52.97483326]
[1741567376090,0.05609832,126.35,126.34,52.97483326]
[1741567376394,52.97483326,126.56,126.36,216.03235299]
[1741567376599,7.9049,126.52,126.43,52.97483326]
[1741567376798,89.21483326,126.56,126.43,89.21483326]
[1741567377096,36.24,126.56,126.49,52.97483326]
[1741567377400,36.24,126.59,126.49,52.97483326]
[1741567377793,36.24,126.59,126.43,261.58]
[1741567377995,52.97483326,126.56,126.43,314.55483326]
[1741567378197,0.05580634,126.52,126.43,314.55483326]
[1741567378400,36.22,126.51,126.43,314.55483326]
[1741567378698,52.97483326,126.5,126.4,52.97483326]
[1741567379409,52.97483326,126.5,126.37,297.62]
[1741567379410,0.05580634,126.46,126.44,0.05914659]
[1741567379596,36.22,126.45,126.37,350.59483326]
[1741567379795,0.05580634,126.46,126.4,52.97483326]
[1741567379997,36.26,126.49,126.43,52.97483326]
[1741567380795,0.05978305,126.47,126.45,0.05795396]
[1741567382894,0.05978305,126.47,126.42,52.97483326]
[1741567383203,0.05978305,126.47,126.39,52.97483326]
[1741567383505,52.97483326,126.45,126.31,36.2]
[1741567383698,36.26,126.44,126.36,52.97483326]
[1741567383905,36.26,126.44,126.36,89.25483326]
[1741567384101,192.0,126.48,126.39,52.97483326]
[1741567384297,0.001807,126.41,126.39,53.02516831]
[1741567384496,36.28,126.47,126.39,52.97483326]
[1741567384896,4.092,126.5,126.41,52.97483326]
[1741567385503,0.05458161,126.47,126.44,0.05267677]
[1741567386498,36.27458161,126.47,126.44,0.05267677]
[1741567386698,36.27458161,126.47,126.38,261.2]
[1741567386902,36.22,126.47,126.38,261.2]
[1741567387102,40.412,126.5,126.42,52.97483326]
[1741567387303,48.3179,126.5,126.42,52.97483326]
[1741567387606,8.2202,126.52,126.45,52.97483326]
[1741567387607,4.0384,126.52,126.45,52.97483326]
[1741567387805,0.05826422,126.47,126.45,60.93557772]
[1741567388001,0.05826422,126.47,126.45,53.02717772]
[1741567388201,36.46,126.5,126.38,261.2]
[1741567388504,0.05561082,126.47,126.45,0.05138605]
[1741567388705,36.5,126.46,126.38,261.2]
[1741567389503,36.43451865,126.46,126.38,261.2]
[1741567389903,0.05104536,126.43,126.41,0.05860953]
[1741567390499,0.05104536,126.43,126.41,53.03344279]
[1741567390903,36.46,126.48,126.41,0.05860953]
[1741567391708,7.9086,126.46,126.41,0.05860953]
[1741567392004,0.0561645,126.45,126.41,0.05860953]
[1741567392207,7.9654645,126.45,126.41,0.05860953]
[1741567392609,0.0561645,126.45,126.41,0.05860953]
[1741567392808,7.9105,126.43,126.41,0.05860953]
[1741567393008,36.38,126.44,126.41,0.05860953]
[1741567393307,36.38,126.44,126.34,228.38]
[1741567393500,52.97483326,126.42,126.32,261.08]
[1741567393700,52.97483326,126.4,126.31,1.37647338]
[1741567393908,36.4,126.39,126.32,52.97483326]
[1741567394102,4.111,126.44,126.36,52.97483326]
[1741567394308,36.5,126.48,126.39,52.97483326]
[1741567394505,0.05785606,126.41,126.4,36.52]
[1741567394705,36.5,126.48,126.37,36.52]
[1741567395002,0.05660155,126.42,126.39,1.484e-05]
[1741567395203,89.55483326,126.41,126.39,1.484e-05]
[1741567395405,89.55483326,126.41,126.28,36.58]
[1741567395598,89.55483326,126.41,126.27,318.02703326]
[1741567395599,52.97483326,126.39,126.27,261.08]
[1741567395804,52.97483326,126.36,126.27,261.08]
[1741567396006,36.58,126.35,126.25,121.44705261]
[1741567396207,52.97483326,126.33,126.25,121.44705261]
[1741567396408,0.05166956,126.33,126.3,0.0505637]
[1741567396607,7.9176,126.31,126.3,0.0505637]
[1741567396906,36.6,126.31,126.25,121.44705261]
[1741567397103,0.05096935,126.33,126.25,121.44705261]
[1741567397104,0.05096935,126.33,126.25,174.42188587]
[1741567397308,36.6,126.38,126.28,52.97483326]
[1741567397800,36.6,126.38,126.29,52.97483326]
[1741567398013,36.6,126.38,126.32,0.05583814]
[1741567398206,7.9169,126.33,126.32,0.05583814]
[1741567400308,0.05893255,126.34,126.32,0.05583814]
[1741567400813,0.05893255,126.34,126.33,36.52]
[1741567401008,4.1936,126.4,126.33,36.52]
[1741567401213,3.8433,126.44,126.35,52.97483326]
[1741567401615,36.5,126.45,126.35,52.97483326]
[1741567401914,36.5,126.45,126.35,60.88953326]
[1741567402112,0.05622908,126.41,126.39,0.05356049]
[1741567404012,8.0153,126.5,126.39,0.05356049]
[1741567404206,44.4153,126.5,126.39,0.05356049]
[1741567404413,44.4153,126.5,126.38,52.97483326]
[1741567404613,7.9064,126.49,126.38,52.97483326]
[1741567404813,44.4153,126.5,126.38,52.97483326]
[1741567405015,8.0153,126.5,126.41,52.97483326]
[1741567405210,4.172,126.5,126.43,52.97483326]
[1741567405411,0.05186679,126.45,126.43,53.0317717]
[1741567405612,4.172,126.5,126.43,53.0317717]
[1741567405917,0.05958601,126.45,126.43,53.0317717]
[1741567406113,4.0287,126.53,126.47,7.9074]
[1741567406319,8.0849,126.56,126.46,89.35483326]
[1741567406513,8.0849,126.56,126.48,52.97483326]
[1741567406715,0.05203653,126.52,126.5,52.97483326]
[1741567406915,0.05203653,126.52,126.5,53.02693919]
[1741567407312,0.05203653,126.52,126.5,0.05210593]
[1741567408215,0.05203653,126.52,126.51,7.9051]
[1741567408818,0.05203653,126.52,126.5,53.02693919]
[1741567409420,4.0653,126.61,126.56,7.9015]
[1741567409918,7.8989,126.61,126.57,7.9013]
[1741567410224,36.4,126.63,126.57,7.9013]
[1741567410417,7.8985,126.62,126.57,7.9013]
[1741567410617,0.05921501,126.61,126.59,0.05720984]
[1741567411220,0.05921501,126.61,126.51,261.0]
[1741567411517,52.97483326,126.62,126.51,261.0]
[1741567412419,52.97483326,126.62,126.55,0.06075063]
[1741567412619,0.05501929,126.58,126.55,0.06075063]
[1741567412820,36.63501929,126.58,126.55,0.06075063]
[1741567413019,36.63501929,126.58,126.55,33.18267407]
[1741567413925,89.60985255,126.58,126.53,132.48769376]
[1741567414322,7.9032,126.54,126.53,132.48769376]
[1741567414524,0.05501929,126.58,126.53,132.48769376]
[1741567414721,36.64,126.6,126.53,132.48769376]
[1741567414922,7.9015,126.57,126.53,132.48769376]
[1741567415217,7.9015,126.57,126.51,262.19277052]
[1741567415218,0.05942096,126.58,126.55,0.05992942]
[1741567415532,36.74,126.61,126.51,52.97483326]
[1741567415935,0.05627881,126.58,126.55,0.05534128]
[1741567416226,52.97483326,126.66,126.56,89.69483326]
[1741567416429,92.41653326,126.78,126.57,260.88]
[1741567416430,36.72,126.69,126.57,260.88]
[1741567416626,36.72,126.69,126.59,52.97483326]
[1741567416932,36.72,126.69,126.6,36.72]
[1741567417224,36.72,126.69,126.61,52.97483326]
[1741567417427,36.72,126.69,126.6,36.72]
[1741567417428,36.74,126.72,126.64,52.97483326]
[1741567417625,36.74,126.72,126.64,89.71483326]
[1741567418133,7.8937,126.7,126.64,89.71483326]
[1741567418422,52.97483326,126.76,126.64,89.71483326]
[1741567418628,7.8913,126.74,126.69,52.97483326]
[1741567418819,36.7,126.81,126.72,52.97483326]
[1741567419421,36.7,126.81,126.75,0.05135134]
[1741567419629,32.48465996,126.82,126.75,89.8061846]
[1741567419826,32.48465996,126.82,126.78,52.97483326]
[1741567420142,86.62575989,126.83,126.79,36.8]
[1741567420143,56.92116037,126.83,126.79,36.8]
[1741567420432,7.99216037,126.83,126.81,52.97483326]
[1741567420731,0.05451438,126.82,126.81,313.67483326]
[1741567420933,0.05451438,126.82,126.81,317.61483326]
[1741567421131,0.05451438,126.82,126.81,325.50123326]
[1741567421328,1.438e-05,126.82,126.81,325.50123326]
[1741567422428,1.438e-05,126.82,126.81,378.47606652]
[1741567422629,1.57579577,126.92,126.81,370.58966652]
[1741567422921,1.57579577,126.92,126.89,52.97483326]
[1741567423235,1.57579577,126.92,126.91,7.8802]
[1741567423434,1.57579577,126.92,126.9,297.38]
[1741567423836,1.63273351,126.92,126.9,0.06068596]
[1741567424232,7.8829,126.87,126.84,260.5]
[1741567424431,0.05693774,126.92,126.84,260.5]
[1741567424729,36.88,126.95,126.85,89.87483326]
[1741567425338,36.92,126.98,126.85,89.87483326]
[1741567425525,0.05444451,126.91,126.89,0.06024736]
[1741567425934,89.89483326,126.93,126.85,36.9]
[1741567426135,0.05249063,126.91,126.89,0.0511075]
[1741567426338,52.97483326,126.9,126.79,36.9]
[1741567426539,36.9,126.89,126.78,313.33483326]
[1741567427437,7.8838,126.86,126.8,7.8869]
[1741567427642,0.05511254,126.85,126.82,0.05771425]
[1741567427835,36.91511254,126.85,126.82,0.05771425]
[1741567428037,7.8876,126.8,126.78,260.36]
[1741567428236,36.98,126.81,126.74,36.94]
[1741567428534,36.98,126.81,126.72,52.97483326]
[1741567428737,89.93483326,126.85,126.72,52.97483326]
[1741567428940,89.97483326,126.91,126.78,52.97483326]
[1741567429236,89.97483326,126.91,126.78,90.09483326]
[1741567429437,0.06071162,126.86,126.83,0.05130814]
[1741567429639,0.06071162,126.86,126.72,52.97483326]
[1741567429640,37.1,126.85,126.75,52.97483326]
[1741567429833,37.1,126.85,126.78,52.97483326]
[1741567430034,37.24,126.89,126.78,52.97483326]
[1741567430436,37.24,126.9,126.79,260.3]
[1741567430637,4.0135,126.91,126.81,52.97483326]
[1741567430940,4.0135,126.91,126.83,0.058241]
[1741567430941,0.05156729,126.86,126.83,0.058241]
[1741567431338,0.05156729,126.86,126.81,52.97483326]
[1741567431644,0.05156729,126.86,126.83,0.05269016]
[1741567432141,0.05156729,126.86,126.66,303.97483326]
[1741567432142,0.05156729,126.86,126.74,37.18]
[1741567432341,7.8858,126.83,126.74,37.18]
[1741567432543,37.18,126.83,126.74,37.18]